[Event "46th OKU-C 2019"]
[Site "Utrecht"]
[Date "2019.05.31"]
[Round "1.4"]
[White "Jos, Ernst"]
[Black "Reichardt, Robin"]
[Result "1/2-1/2"]
[ECO "D05"]
[WhiteElo "1920"]
[BlackElo "2045"]
[Annotator "NA RC"]
[PlyCount "55"]
[EventDate "2019.05.31"]
[EventType "swiss"]
[EventCountry "NED"]
[SourceTitle "playchess.com"]
[Source "ChessBase"]
[SourceQuality "1"]
[TimeControl "6600+10"]

1. d4 {[%emt 0:00:00]} d5 {[%emt 0:00:03]} 2. Nf3 {[%emt 0:00:02]} Nf6 {[%emt 0:00:21]} 3. e3 {[%emt 0:00:07]} e6 {[%emt 0:00:18]} 4. Bd3 {[%emt 0:00:09]} c5 {[%emt 0:01:04]} 5. c3 {[%emt 0:00:08]} Nc6 {[%emt 0:01:34]} 6. Nbd2 {[%emt 0:00:08]} Be7 {[%emt 0:00:34]} 7. O-O {[%emt 0:00:10]} O-O {[%emt 0:00:28]} 8. dxc5 {[%emt 0:00:07]} Bxc5 {[%emt 0:02:00]} 9. e4 {[%emt 0:00:09]} b6 {[%emt 0:11:38] D05: Colle System with ...e6} (9... Qc7 10. exd5 exd5 11. Nb3 Bb6 12. Bg5 Ne4 13. Bxe4 dxe4 14. Nfd4 Ne5 15. Bf4 Nf3+ 16. Qxf3 exf3 17. Bxc7 fxg2 18. Rfe1 Bxc7 19. Nb5 Bb6 20. Nd6 Be6 21. Nxb7 Rab8 22. Nd6 Rfd8 23. Rad1 a5 24. Ne4 h6 {½-½ (24) Stanec,N (2473)-Horvath,D (2447) Austria 2018}) 10. Qe2 {[%emt 0:09:27]} Qc7 $1 {[%emt 0:06:16]} 11. h3 {[%emt 0:01:27]} Nh5 {[%emt 0:17:08]} 12. Qd1 {[%emt 0:00:50]} Nf4 {[%emt 0:06:08]} 13. Nb3 {[%emt 0:00:56]} Nxd3 {[%emt 0:06:59]} 14. Qxd3 {[%emt 0:00:24]} Ne5 {[%emt 0:05:33]} 15. Nxe5 {[%emt 0:03:43]} Qxe5 {[%emt 0:00:31]} 16. Nxc5 $146 {[%emt 0:01:17]} ({Predecessor:} 16. exd5 Qxd5 17. Qxd5 exd5 {0-1 (36) Overesch,D (1701)-Emming,B (1726) Germany 2016}) 16... bxc5 {[%emt 0:00:10]} 17. exd5 {[%emt 0:01:25]} exd5 {[%emt 0:01:15]} 18. Be3 {[%emt 0:04:31]} Qd6 {[%emt 0:02:06]} 19. Rfd1 {[%emt 0:01:13]} Rd8 {[%emt 0:04:51]} 20. Qb5 {[%emt 0:02:32]} c4 {[%emt 0:05:25]} 21. Rd2 {[%emt 0:12:30]} a6 {[%emt 0:04:25]} 22. Qa5 {[%emt 0:02:24]} Be6 {[%emt 0:05:07]} 23. b3 {[%emt 0:04:46]} Qc6 {[%emt 0:04:22]} 24. b4 {[%emt 0:06:43]} Qb5 {[%emt 0:02:13]} 25. Bb6 {[%emt 0:06:21]} Rd6 {[%emt 0:03:48]} 26. Bc7 {[%emt 0:00:00]} Qxa5 {[%emt 0:01:39]} 27. Bxa5 {[%emt 0:00:00]} Ra7 {[%emt 0:06:38]} 28. Rd4 $11 {[%emt 0:00:48]} 1/2-1/2

[Event "46th OKU-C 2019"]
[Site "Utrecht"]
[Date "2019.06.01"]
[Round "2.1"]
[White "Van Duijl, Henri"]
[Black "Kruisselbrink, Jan"]
[Result "1-0"]
[ECO "B32"]
[WhiteElo "1495"]
[BlackElo "1579"]
[Annotator "NA"]
[PlyCount "65"]
[EventDate "2019.05.31"]
[EventType "swiss"]
[EventCountry "NED"]
[SourceTitle "playchess.com"]
[Source "ChessBase"]
[SourceQuality "1"]
[TimeControl "6600+10"]

1. e4 {[%emt 0:00:00]} c5 {[%emt 0:00:00]} 2. Nf3 {[%emt 0:00:13]} Nc6 {[%emt 0:00:04]} 3. d4 {[%emt 0:00:26]} cxd4 {[%emt 0:00:05]} 4. Nxd4 {[%emt 0:00:13]} e5 {[%emt 0:00:09]} 5. Nb5 {[%emt 0:02:34]} d6 {[%emt 0:01:39]} 6. c4 {[%emt 0:01:22]} a6 {[%emt 0:14:51]} 7. N5c3 {[%emt 0:00:51]} Nf6 {[%emt 0:03:47]} 8. h3 {[%emt 0:03:47]} Be7 {[%emt 0:01:24]} 9. Be3 {[%emt 0:03:06]} O-O {[%emt 0:01:46]} 10. Be2 {[%emt 0:01:51]} Be6 {[%emt 0:01:17]} 11. O-O {[%emt 0:02:05]} Rc8 {[%emt 0:06:17]} 12. Nd2 {[%emt 0:04:36]} Re8 {[%emt 0:05:52]} 13. Nd5 {[%emt 0:01:54]} Bxd5 {[%emt 0:02:11]} 14. cxd5 {[%emt 0:02:01]} Nb8 {[%emt 0:01:20]} 15. Qb3 {[%emt 0:02:48]} b5 {[%emt 0:01:33]} 16. a4 {[%emt 0:03:05]} bxa4 {[%emt 0:07:21]} 17. Rxa4 {[%emt 0:01:49]} Nfd7 {[%emt 0:02:03]} 18. Rc4 {[%emt 0:07:00]} Qa5 {[%emt 0:10:01]} 19. Rfc1 {[%emt 0:04:27]} Nc5 {[%emt 0:09:03]} 20. Qd1 {[%emt 0:11:06]} Qd8 {[%emt 0:14:10]} 21. b4 {[%emt 0:00:58]} Nbd7 {[%emt 0:04:32]} 22. bxc5 {[%emt 0:02:58]} dxc5 {[%emt 0:00:45]} 23. Nf3 {[%emt 0:04:59]} Bd6 {[%emt 0:00:52]} 24. Ra4 {[%emt 0:03:24]} a5 {[%emt 0:02:28]} 25. Bb5 {[%emt 0:09:24]} Re7 {[%emt 0:01:17]} 26. Qe1 {[%emt 0:04:22]} Ra8 {[%emt 0:01:20]} 27. Bc6 {[%emt 0:04:34]} Ra7 {[%emt 0:01:21]} 28. Bd2 {[%emt 0:05:43]} Nb8 {[%emt 0:02:08]} 29. Rxa5 {[%emt 0:03:35]} Nxc6 {[%emt 0:01:26]} 30. dxc6 {[%emt 0:01:15]} Rac7 {[%emt 0:00:28]} 31. Ra6 {[%emt 0:02:09]} Qc8 {[%emt 0:00:06]} 32. Rca1 {[%emt 0:00:41]} Rxc6 {[%emt 0:00:44]} 33. Ra8 {[%emt 0:00:41]} 1-0

[Event "46th OKU-C 2019"]
[Site "Utrecht"]
[Date "2019.06.01"]
[Round "2.2"]
[White "Smits, Marc"]
[Black "Van Egmond, Tom"]
[Result "0-1"]
[ECO "B23"]
[WhiteElo "1570"]
[BlackElo "1492"]
[Annotator "NA"]
[PlyCount "70"]
[EventDate "2019.05.31"]
[EventType "swiss"]
[EventCountry "NED"]
[SourceTitle "playchess.com"]
[Source "ChessBase"]
[SourceQuality "1"]
[TimeControl "6600+10"]

1. e4 {[%emt 0:00:00]} c5 {[%emt 0:00:00]} 2. Nc3 {[%emt 0:00:18]} Nc6 {[%emt 0:00:37]} 3. f4 {[%emt 0:00:25]} d6 {[%emt 0:01:02]} 4. Nf3 {[%emt 0:04:30]} g6 {[%emt 0:02:58]} 5. Be2 {[%emt 0:02:21]} Bg7 {[%emt 0:00:37]} 6. d3 {[%emt 0:02:27]} Nf6 {[%emt 0:01:33]} 7. Be3 {[%emt 0:00:29]} O-O {[%emt 0:00:45]} 8. Qd2 {[%emt 0:02:15]} b5 {[%emt 0:15:03]} 9. Rb1 {[%emt 0:06:42]} Rb8 {[%emt 0:01:18]} 10. d4 {[%emt 0:04:30]} b4 {[%emt 0:03:23]} 11. Nd1 {[%emt 0:08:30]} Nxe4 {[%emt 0:02:57]} 12. Qc1 {[%emt 0:01:22]} cxd4 {[%emt 0:01:29]} 13. Bg1 {[%emt 0:06:01]} Qa5 {[%emt 0:04:23]} 14. Kf1 {[%emt 0:08:23]} Ba6 {[%emt 0:02:49]} 15. Bd3 {[%emt 0:03:08]} b3 {[%emt 0:17:49]} 16. axb3 {[%emt 0:08:54]} Rxb3 {[%emt 0:00:23]} 17. Nf2 {[%emt 0:04:19]} Nxf2 {[%emt 0:03:50]} 18. Kxf2 {[%emt 0:01:32]} Bxd3 {[%emt 0:00:12]} 19. Ra1 {[%emt 0:02:11]} Qxa1 {[%emt 0:02:47]} 20. Qxa1 {[%emt 0:00:52]} Bxc2 {[%emt 0:00:28]} 21. Nd2 {[%emt 0:04:01]} Rb7 {[%emt 0:08:25]} 22. Qa6 {[%emt 0:10:09]} Rb6 {[%emt 0:00:41]} 23. Qe2 {[%emt 0:01:49]} d3 {[%emt 0:00:39]} 24. Qe4 {[%emt 0:01:32]} Rc8 {[%emt 0:01:46]} 25. Kg3 {[%emt 0:03:01]} Rxb2 {[%emt 0:00:51]} 26. f5 {[%emt 0:00:39]} Be5+ {[%emt 0:00:33]} 27. Kh3 {[%emt 0:02:58]} Bc3 {[%emt 0:01:12]} 28. fxg6 {[%emt 0:00:34]} hxg6 {[%emt 0:00:40]} 29. Be3 {[%emt 0:02:12]} Bxd2 {[%emt 0:02:28]} 30. Bxd2 {[%emt 0:00:08]} Bb1 {[%emt 0:00:19]} 31. Qg4 {[%emt 0:02:08]} Rcb8 {[%emt 0:03:02]} 32. Bc3 {[%emt 0:02:51]} d2 {[%emt 0:00:09]} 33. Rxb1 {[%emt 0:01:44]} Rxb1 {[%emt 0:00:02]} 34. Qh4 {[%emt 0:00:11]} f6 {[%emt 0:00:02]} 35. Bxd2 {[%emt 0:00:04]} R1b3+ {[%emt 0:00:04]} 0-1

[Event "46th OKU-C 2019"]
[Site "Utrecht"]
[Date "2019.06.01"]
[Round "2.3"]
[White "Heins, Ricardo"]
[Black "Van Manen, Siebe"]
[Result "1-0"]
[ECO "B95"]
[WhiteElo "1430"]
[BlackElo "1559"]
[Annotator "NA"]
[PlyCount "87"]
[EventDate "2019.05.31"]
[EventType "swiss"]
[EventCountry "NED"]
[SourceTitle "playchess.com"]
[Source "ChessBase"]
[SourceQuality "1"]
[TimeControl "6600+10"]

1. e4 {[%emt 0:00:00]} c5 {[%emt 0:00:00]} 2. Nf3 {[%emt 0:00:01]} d6 {[%emt 0:00:03]} 3. d4 {[%emt 0:00:13]} cxd4 {[%emt 0:00:07]} 4. Nxd4 {[%emt 0:00:07]} Nf6 {[%emt 0:00:07]} 5. Nc3 {[%emt 0:00:24]} a6 {[%emt 0:00:15]} 6. Bc4 {[%emt 0:00:41]} e6 {[%emt 0:01:45]} 7. Bg5 {[%emt 0:03:14]} Be7 {[%emt 0:00:18]} 8. O-O {[%emt 0:02:32]} b5 {[%emt 0:00:48]} 9. Bd3 {[%emt 0:00:36]} O-O {[%emt 0:00:36]} 10. Nf3 {[%emt 0:01:32]} Bb7 {[%emt 0:03:42]} 11. a3 {[%emt 0:01:42]} Nbd7 {[%emt 0:03:59]} 12. Qd2 {[%emt 0:01:26]} Nc5 {[%emt 0:00:45]} 13. Rfe1 {[%emt 0:01:32]} Nxd3 {[%emt 0:00:55]} 14. cxd3 {[%emt 0:00:23]} h6 {[%emt 0:06:20]} 15. Bh4 {[%emt 0:01:02]} Nxe4 {[%emt 0:09:44]} 16. Nxe4 {[%emt 0:03:06]} Bxh4 {[%emt 0:00:56]} 17. Qf4 {[%emt 0:00:53]} Be7 {[%emt 0:03:54]} 18. Ng3 {[%emt 0:00:36]} e5 {[%emt 0:15:00]} 19. Qg4 {[%emt 0:03:37]} Qc8 {[%emt 0:06:10]} 20. Nf5 {[%emt 0:00:20]} Bf6 {[%emt 0:00:59]} 21. Nxh6+ {[%emt 0:03:25]} Kh8 {[%emt 0:01:49]} 22. Nf5 {[%emt 0:07:01]} g6 {[%emt 0:04:15]} 23. Qh3+ {[%emt 0:04:54]} Kg8 {[%emt 0:00:09]} 24. Nh6+ {[%emt 0:07:13]} Kg7 {[%emt 0:01:10]} 25. Ng4 {[%emt 0:00:27]} Rh8 {[%emt 0:10:23]} 26. Qg3 {[%emt 0:01:05]} Qf5 {[%emt 0:04:32]} 27. Nxf6 {[%emt 0:03:49]} Kxf6 {[%emt 0:01:48]} 28. Nd2 {[%emt 0:00:52]} Kg7 {[%emt 0:01:23]} 29. Rac1 {[%emt 0:03:13]} Rh5 {[%emt 0:01:02]} 30. Ne4 {[%emt 0:02:52]} Qd7 {[%emt 0:06:06]} 31. Qe3 {[%emt 0:04:11]} f5 {[%emt 0:03:27]} 32. Ng3 {[%emt 0:02:14]} Rh4 {[%emt 0:02:26]} 33. Qb6 {[%emt 0:00:13]} Rc8 {[%emt 0:02:45]} 34. Rxc8 {[%emt 0:02:33]} Bxc8 {[%emt 0:00:40]} 35. Rc1 {[%emt 0:00:13]} Kf6 {[%emt 0:00:36]} 36. Rc7 {[%emt 0:01:10]} Qe6 {[%emt 0:00:39]} 37. Ne2 {[%emt 0:01:39]} Rh8 {[%emt 0:01:45]} 38. Rc6 {[%emt 0:00:31]} Kg5 {[%emt 0:01:02]} 39. Rxd6 {[%emt 0:00:31]} Qf7 {[%emt 0:00:44]} 40. g3 {[%emt 0:01:18]} Rg8 {[%emt 0:01:38]} 41. Qe3+ {[%emt 0:02:50]} f4 {[%emt 0:01:24]} 42. Qxe5+ {[%emt 0:00:23]} Bf5 {[%emt 0:00:58]} 43. Qxf4+ {[%emt 0:00:29]} Kh5 {[%emt 0:00:13]} 44. Qh4# {[%emt 0:00:45]} 1-0

[Event "46th OKU-C 2019"]
[Site "Utrecht"]
[Date "2019.06.01"]
[Round "2.4"]
[White "Van den Dool, Gerrit"]
[Black "Van Essen, Marieke"]
[Result "1/2-1/2"]
[ECO "C25"]
[WhiteElo "1406"]
[BlackElo "1553"]
[Annotator "NA"]
[PlyCount "96"]
[EventDate "2019.05.31"]
[EventType "swiss"]
[EventCountry "NED"]
[SourceTitle "playchess.com"]
[Source "ChessBase"]
[SourceQuality "1"]
[TimeControl "6600+10"]

1. e4 {[%emt 0:00:00]} e5 {[%emt 0:00:00]} 2. Nc3 {[%emt 0:00:00]} Nc6 {[%emt 0:00:08]} 3. Bc4 {[%emt 0:00:28]} Bc5 {[%emt 0:00:08]} 4. d3 {[%emt 0:01:01]} h6 {[%emt 0:00:15]} 5. Nge2 {[%emt 0:02:14]} d6 {[%emt 0:02:33]} 6. a3 {[%emt 0:01:32]} Be6 {[%emt 0:02:35]} 7. Nd5 {[%emt 0:02:51]} Nge7 {[%emt 0:04:30]} 8. b4 {[%emt 0:01:02]} Bb6 {[%emt 0:00:59]} 9. Nxb6 {[%emt 0:00:45]} axb6 {[%emt 0:00:20]} 10. O-O {[%emt 0:07:11]} Bxc4 {[%emt 0:01:13]} 11. dxc4 {[%emt 0:00:02]} f5 {[%emt 0:00:16]} 12. b5 {[%emt 0:08:52]} Na5 {[%emt 0:02:56]} 13. exf5 {[%emt 0:02:33]} Nxf5 {[%emt 0:05:07]} 14. Qd3 {[%emt 0:13:59]} O-O {[%emt 0:05:31]} 15. Bd2 {[%emt 0:02:26]} Kh8 {[%emt 0:06:25]} 16. f4 {[%emt 0:05:15]} Qe7 {[%emt 0:06:42]} 17. fxe5 {[%emt 0:01:43]} Qxe5 {[%emt 0:00:37]} 18. Bc3 {[%emt 0:08:11]} Qc5+ {[%emt 0:02:53]} 19. Kh1 {[%emt 0:00:36]} Nxc4 {[%emt 0:08:13]} 20. Rxf5 {[%emt 0:02:33]} Rxf5 {[%emt 0:04:59]} 21. Bd4 {[%emt 0:01:13]} Qd5 {[%emt 0:05:07]} 22. Ng3 {[%emt 0:08:07]} Re5 {[%emt 0:12:31]} 23. Bxe5 {[%emt 0:01:23]} Qxd3 {[%emt 0:02:02]} 24. Bxg7+ {[%emt 0:02:50]} Kxg7 {[%emt 0:00:00]} 25. cxd3 {[%emt 0:00:05]} Rxa3 {[%emt 0:00:00]} 26. Rc1 {[%emt 0:02:12]} Rxd3 {[%emt 0:02:16]} 27. Kg1 {[%emt 0:00:24]} d5 {[%emt 0:03:14]} 28. Ne4 {[%emt 0:03:02]} Kg6 {[%emt 0:07:54]} 29. Kf2 {[%emt 0:01:21]} Rb3 {[%emt 0:03:55]} 30. Nc3 {[%emt 0:00:36]} c6 {[%emt 0:00:17]} 31. Ke2 {[%emt 0:01:11]} Rb2+ {[%emt 0:02:01]} 32. Kf3 {[%emt 0:03:52]} Nd6 {[%emt 0:02:14]} 33. bxc6 {[%emt 0:01:16]} bxc6 {[%emt 0:00:04]} 34. Nxd5 {[%emt 0:00:54]} c5 {[%emt 0:03:52]} 35. Nxb6 {[%emt 0:05:53]} Rxb6 {[%emt 0:02:11]} 36. Rc2 {[%emt 0:00:07]} c4 37. Rxc4 {[%emt 0:00:11]} Nf5 {[%emt 0:02:26]} 38. Rc5 {[%emt 0:04:47]} Rb2 {[%emt 0:01:19]} 39. g4 {[%emt 0:02:41]} Rb3+ {[%emt 0:01:44]} 40. Kf2 {[%emt 0:01:38]} Nh4 {[%emt 0:01:55]} 41. Rh5 {[%emt 0:02:41]} Rh3 {[%emt 0:03:17]} 42. Kg1 {[%emt 0:00:04]} Nf3+ {[%emt 0:00:03]} 43. Kg2 Rxh5 {[%emt 0:00:11]} 44. gxh5+ {[%emt 0:00:02]} Kxh5 45. Kxf3 {[%emt 0:00:02]} Kh4 {[%emt 0:00:01]} 46. Kg2 h5 {[%emt 0:00:01]} 47. Kg1 Kh3 {[%emt 0:00:01]} 48. Kh1 {[%emt 0:01:17]} h4 {[%emt 0:00:00]} 1/2-1/2

[Event "46th OKU-C 2019"]
[Site "Utrecht"]
[Date "2019.06.01"]
[Round "3.3"]
[White "Van Essen, Marieke"]
[Black "Molanus, Eva"]
[Result "1-0"]
[ECO "B23"]
[WhiteElo "1553"]
[BlackElo "1262"]
[Annotator "NA"]
[PlyCount "35"]
[EventDate "2019.05.31"]
[EventType "swiss"]
[EventCountry "NED"]
[SourceTitle "playchess.com"]
[Source "ChessBase"]
[SourceQuality "1"]
[TimeControl "6600+10"]

1. e4 {[%emt 0:00:00]} c5 {[%emt 0:00:00]} 2. Nc3 {[%emt 0:00:00]} d6 {[%emt 0:00:16]} 3. f4 {[%emt 0:00:01]} Nc6 {[%emt 0:00:25]} 4. Nf3 {[%emt 0:00:06]} g6 {[%emt 0:01:17]} 5. Bc4 {[%emt 0:00:17]} Bg7 {[%emt 0:00:16]} 6. d3 {[%emt 0:00:12]} e6 {[%emt 0:00:56]} 7. O-O {[%emt 0:00:17]} Nge7 {[%emt 0:00:16]} 8. Qe1 {[%emt 0:00:22]} O-O {[%emt 0:00:25]} 9. Qh4 {[%emt 0:03:19]} a6 {[%emt 0:06:22]} 10. f5 {[%emt 0:04:06]} exf5 {[%emt 0:04:06]} 11. Bh6 {[%emt 0:00:38]} fxe4 {[%emt 0:07:00]} 12. dxe4 {[%emt 0:05:23]} d5 {[%emt 0:06:14]} 13. Ng5 {[%emt 0:02:49]} Bd4+ {[%emt 0:01:01]} 14. Kh1 {[%emt 0:00:16]} f6 {[%emt 0:01:39]} 15. Nxd5 {[%emt 0:01:25]} Nxd5 {[%emt 0:00:59]} 16. Bxd5+ {[%emt 0:00:13]} Kh8 {[%emt 0:00:21]} 17. Bg7+ {[%emt 0:00:22]} Kxg7 {[%emt 0:00:12]} 18. Qxh7# {[%emt 0:00:05]} 1-0

[Event "46th OKU-C 2019"]
[Site "Utrecht"]
[Date "2019.06.01"]
[Round "3.4"]
[White "Van den Akker, Bart"]
[Black "Van den Dool, Gerrit"]
[Result "1-0"]
[ECO "D12"]
[WhiteElo "1503"]
[BlackElo "1406"]
[Annotator "NA"]
[PlyCount "75"]
[EventDate "2019.05.31"]
[EventType "swiss"]
[EventCountry "NED"]
[SourceTitle "playchess.com"]
[Source "ChessBase"]
[SourceQuality "1"]
[TimeControl "6600+10"]

1. d4 {[%emt 0:00:00]} c6 {[%emt 0:00:00]} 2. Nf3 {[%emt 0:01:17]} d5 {[%emt 0:00:17]} 3. e3 {[%emt 0:00:43]} Bf5 {[%emt 0:01:29]} 4. c4 {[%emt 0:00:46]} e6 {[%emt 0:00:55]} 5. Be2 {[%emt 0:01:44]} Nd7 {[%emt 0:05:46]} 6. O-O {[%emt 0:01:39]} h6 {[%emt 0:01:54]} 7. Nc3 {[%emt 0:01:13]} Bd6 {[%emt 0:01:24]} 8. b3 {[%emt 0:01:57]} Ngf6 {[%emt 0:04:03]} 9. Bb2 {[%emt 0:01:06]} O-O {[%emt 0:01:12]} 10. Bd3 {[%emt 0:02:33]} Bg4 {[%emt 0:05:59]} 11. Re1 {[%emt 0:01:36]} Nh7 {[%emt 0:02:34]} 12. h3 {[%emt 0:08:52]} Bxf3 {[%emt 0:03:07]} 13. Qxf3 {[%emt 0:00:49]} Ng5 {[%emt 0:02:57]} 14. Qd1 {[%emt 0:03:56]} f5 {[%emt 0:01:32]} 15. Ne2 {[%emt 0:12:53]} Ne4 {[%emt 0:11:44]} 16. f4 {[%emt 0:10:02]} Qh4 {[%emt 0:03:57]} 17. Rf1 {[%emt 0:01:30]} Rf6 {[%emt 0:04:05]} 18. Qe1 {[%emt 0:01:19]} Qh5 {[%emt 0:01:57]} 19. Bxe4 {[%emt 0:03:21]} fxe4 {[%emt 0:02:00]} 20. Ng3 {[%emt 0:05:26]} Qh4 {[%emt 0:04:50]} 21. Nxe4 {[%emt 0:01:22]} Qxe1 {[%emt 0:07:17]} 22. Nxf6+ {[%emt 0:00:11]} Nxf6 {[%emt 0:00:26]} 23. Raxe1 {[%emt 0:00:42]} Ne4 {[%emt 0:01:04]} 24. Rf3 {[%emt 0:03:18]} dxc4 {[%emt 0:10:45]} 25. bxc4 {[%emt 0:01:58]} Nd2 {[%emt 0:00:15]} 26. Rg3 {[%emt 0:03:10]} Nxc4 {[%emt 0:00:40]} 27. Bc3 {[%emt 0:01:10]} g5 {[%emt 0:03:03]} 28. h4 {[%emt 0:01:00]} Be7 {[%emt 0:06:01]} 29. hxg5 {[%emt 0:00:54]} hxg5 {[%emt 0:00:31]} 30. fxg5 {[%emt 0:00:43]} Nd6 {[%emt 0:07:36]} 31. e4 {[%emt 0:01:43]} Nb5 {[%emt 0:02:53]} 32. Bb2 {[%emt 0:03:55]} c5 {[%emt 0:01:58]} 33. d5 {[%emt 0:02:00]} c4 {[%emt 0:01:08]} 34. a4 {[%emt 0:03:16]} Bc5+ {[%emt 0:01:46]} 35. Kf1 {[%emt 0:01:13]} Rf8+ {[%emt 0:00:40]} 36. Rf3 {[%emt 0:00:30]} c3 {[%emt 0:00:58]} 37. Rf4 {[%emt 0:01:44]} Rf7 38. Rxf7 {[%emt 0:00:11]} 1-0

[Event "46th OKU-C 2019"]
[Site "Utrecht"]
[Date "2019.06.01"]
[Round "4.1"]
[White "Li-Behn, Tobias"]
[Black "Heins, Ricardo"]
[Result "1-0"]
[ECO "D02"]
[WhiteElo "1237"]
[BlackElo "1430"]
[Annotator "NA RC"]
[PlyCount "174"]
[EventDate "2019.05.31"]
[EventType "swiss"]
[EventCountry "NED"]
[SourceTitle "playchess.com"]
[Source "ChessBase"]
[SourceQuality "1"]
[TimeControl "6600+10"]

1. d4 {[%emt 0:00:00]} d5 {[%emt 0:00:00]} 2. Bf4 {[%emt 0:00:00]} Nf6 {[%emt 0:00:06]} 3. Nf3 {[%emt 0:00:06]} e6 {[%emt 0:00:12]} 4. e3 {[%emt 0:00:25]} Bd6 {[%emt 0:00:21]} 5. Bg3 {[%emt 0:00:03]} O-O {[%emt 0:00:32]} 6. Bd3 {[%emt 0:00:12]} c5 {[%emt 0:00:26]} 7. c3 {[%emt 0:00:59]} c4 {[%emt 0:00:06]} 8. Bc2 {[%emt 0:00:03]} Nc6 {[%emt 0:00:21]} 9. Nbd2 {[%emt 0:00:19]} Qc7 {[%emt 0:00:35]} 10. Qe2 {[%emt 0:01:29]} b5 {[%emt 0:00:25]} 11. e4 {[%emt 0:01:18]} dxe4 {[%emt 0:01:32]} 12. Nxe4 {[%emt 0:00:07]} Nxe4 {[%emt 0:00:30]} 13. Bxe4 {[%emt 0:00:48]} Rb8 {[%emt 0:00:33]} 14. Bxd6 {[%emt 0:03:57]} Qxd6 {[%emt 0:00:15]} 15. O-O {[%emt 0:00:03]} Ne7 {[%emt 0:00:32]} 16. Rfe1 {[%emt 0:03:55]} Bb7 {[%emt 0:00:16]} 17. Bxb7 {[%emt 0:02:45]} Rxb7 {[%emt 0:00:13]} 18. Qc2 {[%emt 0:00:02]} h6 {[%emt 0:00:57]} 19. Nd2 {[%emt 0:02:07]} Ng6 {[%emt 0:00:48]} 20. a4 {[%emt 0:02:20]} a6 {[%emt 0:00:15]} 21. Ne4 {[%emt 0:00:36]} Qd5 {[%emt 0:01:09]} 22. Nc5 {[%emt 0:00:58]} Rb6 {[%emt 0:00:18]} 23. g3 {[%emt 0:03:02]} Rd6 {[%emt 0:00:33]} 24. axb5 {[%emt 0:01:51]} axb5 {[%emt 0:00:07]} 25. Ra5 {[%emt 0:01:17]} Rb8 {[%emt 0:01:39]} 26. Na6 {[%emt 0:02:45]} Rbb6 {[%emt 0:01:12]} 27. Nb4 {[%emt 0:01:48]} Qb7 {[%emt 0:01:06]} 28. Rea1 {[%emt 0:00:49]} Rd8 {[%emt 0:02:29]} 29. Qe2 {[%emt 0:00:47]} Qe7 {[%emt 0:00:45]} 30. Qf3 {[%emt 0:05:00]} Qg5 {[%emt 0:00:42]} 31. Ra7 {[%emt 0:02:48]} Rf8 {[%emt 0:00:17]} 32. Qe2 {[%emt 0:01:07]} Nf4 {[%emt 0:00:22]} 33. Qd1 {[%emt 0:02:38]} Nd5 {[%emt 0:01:10]} 34. Nxd5 {[%emt 0:02:50]} Qxd5 {[%emt 0:00:31]} 35. Qe2 {[%emt 0:00:57]} Rfb8 {[%emt 0:00:44]} 36. R1a5 {[%emt 0:02:14]} Qf5 {[%emt 0:01:24]} 37. Kg2 {[%emt 0:02:17]} Qd5+ {[%emt 0:03:22]} 38. Qf3 {[%emt 0:01:00]} Qxf3+ {[%emt 0:00:52]} 39. Kxf3 {[%emt 0:00:02]} g6 {[%emt 0:01:13]} 40. Rc7 {[%emt 0:00:23]} R6b7 {[%emt 0:00:11]} 41. Rc5 {[%emt 0:00:17]} f6 {[%emt 0:01:10]} 42. Ra6 {[%emt 0:00:40]} Rb6 {[%emt 0:00:21]} 43. Rc8+ {[%emt 0:00:43]} Rxc8 {[%emt 0:04:47]} 44. Rxb6 {[%emt 0:00:32]} Kf7 {[%emt 0:00:19]} 45. Rxb5 {[%emt 0:00:31]} Rc7 {[%emt 0:00:13]} 46. h4 {[%emt 0:00:55]} h5 {[%emt 0:00:07]} 47. Ke3 {[%emt 0:00:05]} Ke7 {[%emt 0:00:23]} 48. f3 {[%emt 0:01:12]} Kf7 {[%emt 0:00:32]} 49. Kf4 {[%emt 0:01:43]} Kg7 {[%emt 0:00:36]} 50. g4 {[%emt 0:01:58]} hxg4 {[%emt 0:01:07]} 51. Kxg4 {[%emt 0:00:02]} Kf7 {[%emt 0:00:57]} 52. f4 {[%emt 0:00:32]} Kg7 {[%emt 0:02:02]} 53. h5 {[%emt 0:01:57]} gxh5+ {[%emt 0:01:04]} 54. Kxh5 {[%emt 0:00:02]} Kf7 {[%emt 0:00:43]} 55. Kh6 {[%emt 0:00:17]} Ke7 {[%emt 0:02:35]} 56. Kg6 {[%emt 0:01:13]} Rd7 {[%emt 0:01:39]} 57. f5 {[%emt 0:02:51]} exf5 {[%emt 0:02:24]} 58. Kxf5 {[%emt 0:01:34]} Rd8 {[%emt 0:02:33]} 59. Rb7+ {[%emt 0:01:03]} Kd6 {[%emt 0:00:25]} 60. Kxf6 {[%emt 0:01:02]} Rf8+ {[%emt 0:00:16]} 61. Rf7 {[%emt 0:00:18]} Rb8 {[%emt 0:00:09]} 62. Ra7 {[%emt 0:03:12]} Rxb2 {[%emt 0:00:15]} 63. Ra6+ {[%emt 0:00:27]} Kd5 {[%emt 0:00:11]} 64. Ra5+ {[%emt 0:00:05]} Kd6 {[%emt 0:00:43]} 65. Rc5 {[%emt 0:00:36]} Rf2+ {[%emt 0:00:30]} 66. Kg5 {[%emt 0:00:02]} Rg2+ {[%emt 0:01:42]} 67. Kf4 {[%emt 0:00:08]} Rd2 {[%emt 0:01:15]} 68. Rxc4 {[%emt 0:00:43]} Rh2 {[%emt 0:00:20]} 69. Rc5 {[%emt 0:00:11]} Ke6 {[%emt 0:00:36]} 70. Ke4 {[%emt 0:00:22]} Rh4+ {[%emt 0:00:22]} 71. Kd3 {[%emt 0:00:01]} Kd6 {[%emt 0:00:15]} 72. Kc4 {[%emt 0:00:45]} Rg4 {[%emt 0:00:23]} 73. Ra5 {[%emt 0:00:53]} Kc6 {[%emt 0:00:22]} 74. Ra6+ {[%emt 0:00:18]} Kb7 {[%emt 0:00:11]} 75. Rd6 {[%emt 0:00:15]} Kc7 {[%emt 0:00:08]} 76. Kc5 {[%emt 0:01:45]} Rg3 {[%emt 0:00:36]} 77. c4 {[%emt 0:00:13]} Rg5+ {[%emt 0:00:36]} 78. d5 {[%emt 0:00:54]} Rg1 {[%emt 0:00:08]} 79. Ra6 {[%emt 0:00:20]} Rc1 {[%emt 0:00:28]} 80. d6+ {[%emt 0:00:42]} Kd7 {[%emt 0:00:35]} 81. Ra7+ {[%emt 0:00:21]} Kd8 {[%emt 0:00:07]} 82. d7 {[%emt 0:01:43]} Rc2 {[%emt 0:00:15]} 83. Kd6 {[%emt 0:00:45]} Rd2+ {[%emt 0:00:06]} 84. Kc6 {[%emt 0:00:30]} Rd4 {[%emt 0:00:30]} 85. c5 {[%emt 0:00:32]} Rd3 {[%emt 0:00:50]} 86. Ra8+ {[%emt 0:00:28]} Ke7 {[%emt 0:00:05]} 87. Re8+ {[%emt 0:00:04]} Kf7 {[%emt 0:00:44]} 1-0

[Event "46th OKU-C 2019"]
[Site "Utrecht"]
[Date "2019.06.01"]
[Round "4.3"]
[White "Schonewille, Midas"]
[Black "Van Manen, Siebe"]
[Result "1-0"]
[ECO "D00"]
[WhiteElo "1506"]
[BlackElo "1559"]
[Annotator "NA RC"]
[PlyCount "43"]
[EventDate "2019.05.31"]
[EventType "swiss"]
[EventCountry "NED"]
[SourceTitle "playchess.com"]
[Source "ChessBase"]
[SourceQuality "1"]
[TimeControl "6600+10"]

1. d4 {[%emt 0:00:00]} d5 {[%emt 0:00:00]} 2. Bf4 {[%emt 0:00:08]} Bf5 {[%emt 0:00:53]} 3. Nc3 {[%emt 0:00:44]} a6 {[%emt 0:01:49]} 4. e3 {[%emt 0:01:00]} e6 {[%emt 0:02:04]} 5. Nf3 {[%emt 0:05:01]} Bd6 {[%emt 0:06:22]} 6. Bg3 {[%emt 0:02:29]} Bxg3 {[%emt 0:01:35]} 7. hxg3 {[%emt 0:00:34]} Bg4 {[%emt 0:02:58]} 8. Qd2 {[%emt 0:02:08]} Nf6 {[%emt 0:01:13]} 9. Ne5 {[%emt 0:02:22]} Bf5 {[%emt 0:01:21]} 10. Be2 {[%emt 0:03:35]} Ne4 {[%emt 0:02:12]} 11. Nxe4 {[%emt 0:00:55]} Bxe4 {[%emt 0:00:07]} 12. f3 {[%emt 0:00:27]} f6 {[%emt 0:27:00]} 13. fxe4 {[%emt 0:03:02]} fxe5 {[%emt 0:02:18]} 14. Bh5+ {[%emt 0:02:31]} Kd7 {[%emt 0:03:06]} 15. exd5 {[%emt 0:05:27]} Qg5 {[%emt 0:02:23]} 16. dxe6+ {[%emt 0:01:17]} Kxe6 {[%emt 0:00:59]} 17. O-O-O {[%emt 0:02:30]} Qxg3 {[%emt 0:00:54]} 18. Qe2 {[%emt 0:03:29]} Qg5 {[%emt 0:02:24]} 19. Qc4+ {[%emt 0:01:36]} Ke7 {[%emt 0:02:03]} 20. Qf7+ {[%emt 0:03:08]} Kd8 {[%emt 0:02:23]} 21. dxe5+ {[%emt 0:00:34]} Kc8 {[%emt 0:00:10]} 22. Qe6+ {[%emt 0:01:06]} 1-0